fUST/lending_fUST_20241220
["ID","MTS","AMOUNT","RATE_DAILY","PERIOD"]
[346078742,1734693104856,-816.89,0.00024383,6]
[346078743,1734693104865,-1486.6,0.00024383,6]
[346078744,1734693104875,-683.88,0.00024383,6]
[346078745,1734693104884,-301.62226335,0.00024383,6]
[346078746,1734693104894,-500.0,0.00024383,6]
[346078747,1734693104904,-3350.69,0.00024383,6]
[346078748,1734693104913,-271.90337404,0.00024383,6]
[346078749,1734693104923,-3984.39,0.00024383,6]
[346078750,1734693104933,-657.82,0.00024383,6]
[346078751,1734693104943,-908.77,0.00024383,6]
[346078752,1734693104952,-500.0,0.00024383,6]
[346078753,1734693104964,-500.0,0.00024383,6]
[346078754,1734693104975,-628.05,0.00024383,6]
[346078755,1734693104984,-500.0,0.00024383,6]
[346078756,1734693104995,-579.5,0.00024383,6]
[346078757,1734693105008,-750.31,0.00024383,6]
[346078758,1734693105031,-519.61,0.00024383,6]
[346078759,1734693105041,-2341.45,0.00024383,6]
[346078760,1734693105050,-703.35,0.00024383,6]
[346078761,1734693105060,-846.66,0.00024383,6]
[346078762,1734693105070,-558.24,0.00024383,6]
[346078763,1734693105079,-784.95,0.00024383,6]
[346078764,1734693105089,-929.35,0.00024383,6]
[346078765,1734693105099,-500.0,0.00024383,6]
[346078766,1734693105108,-2078.12,0.00024383,6]
[346078767,1734693105118,-500.0,0.00024383,6]
[346078768,1734693105129,-2253.32,0.00024383,6]
[346078769,1734693105138,-753.77,0.00024383,6]
[346078770,1734693105148,-1958.52,0.00024383,6]
[346078771,1734693105158,-928.58,0.00024383,6]
[346078772,1734693105167,-500.0,0.00024383,6]
[346078773,1734693105177,-2612.84,0.00024383,6]
[346078774,1734693105188,-816.69,0.00024383,6]
[346078775,1734693105197,-500.0,0.00024383,6]
[346078776,1734693105207,-942.58,0.00024383,6]
[346078777,1734693105219,-998.57,0.00024383,6]
[346078778,1734693105236,-500.0,0.00024383,6]
[346078779,1734693105246,-500.0,0.00024383,6]
[346078780,1734693105255,-3375.68,0.00024383,6]
[346078781,1734693105264,-3019.62,0.00024383,6]
[346078782,1734693105274,-591.11,0.00024383,6]
[346078783,1734693105283,-829.78,0.00024383,6]
[346078784,1734693105292,-500.0,0.00024383,6]
[346078785,1734693105302,-870.11,0.00024383,6]
[346078786,1734693105312,-500.0,0.00024383,6]
[346078787,1734693105321,-2878.24,0.00024383,6]
[346078788,1734693105331,-500.0,0.00024383,6]
[346078789,1734693105340,-500.0,0.00024383,6]
[346078790,1734693105349,-500.0,0.00024383,6]
[346078791,1734693105358,-2093.85,0.00024383,6]
[346078792,1734693105368,-561.5,0.00024383,6]
[346078793,1734693105377,-575.58,0.00024383,6]
[346078794,1734693105387,-500.0,0.00024383,6]
[346078795,1734693105396,-606.38,0.00024383,6]
[346078796,1734693105406,-500.0,0.00024383,6]
[346078797,1734693105415,-1051.37,0.00024383,6]
[346078798,1734693105426,-500.0,0.00024383,6]
[346078799,1734693105437,-605.01,0.00024383,6]
[346078800,1734693105447,-1895.2,0.00024383,6]
[346078801,1734693105456,-1304.77,0.00024383,6]
[346078802,1734693105468,-978.44,0.00024383,6]
[346078803,1734693105478,-823.06,0.00024383,6]
[346078804,1734693105488,-1110.35,0.00024383,6]
[346078805,1734693105498,-3107.96,0.00024383,6]
[346078806,1734693105508,-15620.31,0.00024383,6]
[346078807,1734693105518,-1979.3,0.00024383,6]
[346078808,1734693105528,-1698.36,0.00024383,6]
[346078809,1734693105537,-1217.27,0.00024383,6]
[346078810,1734693105546,-1129.89,0.00024383,6]
[346078811,1734693105555,-500.0,0.00024383,6]
[346078812,1734693105565,-3084.04,0.00024383,6]
[346078813,1734693105575,-611.22,0.00024383,6]
[346078814,1734693105584,-500.0,0.00024383,6]
[346078815,1734693105593,-514.9,0.00024383,6]
[346078816,1734693105602,-749.85,0.00024383,6]
[346078817,1734693105611,-1709.27,0.00024383,6]
[346078818,1734693105621,-631.5,0.00024383,6]
[346078819,1734693105631,-3926.23,0.00024383,6]
[346078820,1734693105640,-8032.25,0.00024383,6]
[346078821,1734693105650,-957.95,0.00024383,6]
[346078822,1734693105659,-647.04,0.00024383,6]
[346078823,1734693105669,-880.3,0.00024383,6]
[346078824,1734693105679,-828.99,0.00024383,6]
[346078825,1734693105688,-500.0,0.00024383,6]
[346078826,1734693105697,-500.0,0.00024383,6]
[346078827,1734693105708,-500.0,0.00024383,6]
[346078828,1734693105718,-1556.66,0.00024383,2]
[346078829,1734693105727,-772.83,0.00024383,6]
[346078830,1734693105737,-933.46,0.00024383,6]
[346078831,1734693105746,-727.74,0.00024383,6]
[346078832,1734693105756,-1507.13,0.00024383,6]
[346078833,1734693105766,-628.91,0.00024383,6]
[346078834,1734693105775,-500.0,0.00024383,6]
[346078835,1734693105785,-1026.99,0.00024383,6]
[346078836,1734693105794,-20507.92,0.00024383,6]
[346078837,1734693105804,-1914.41,0.00024383,6]
[346078838,1734693105813,-945.69,0.00024383,6]
[346078839,1734693105823,-769.8,0.00024383,6]
[346078840,1734693105838,-31690.43,0.00024383,6]
[346078841,1734693105853,-10891.37,0.00024383,6]
[346078842,1734693105862,-1881.92,0.00024383,6]
[346078843,1734693105871,-551.82,0.00024383,6]
[346078844,1734693105880,-500.0,0.00024383,6]
[346078845,1734693105889,-500.0,0.00024383,6]
[346078846,1734693105899,-741.52,0.00024383,6]
[346078847,1734693105908,-739.27,0.00024383,6]
[346078848,1734693105917,-599.48,0.00024383,6]
[346078849,1734693105927,-500.0,0.00024383,6]
[346078850,1734693105936,-674.12,0.00024383,6]
[346078851,1734693105946,-500.0,0.00024383,6]
[346078852,1734693105955,-1525.74,0.00024383,6]
[346078853,1734693105965,-82254.19,0.00024383,6]
[346078854,1734693105977,-5572.46,0.00024383,6]
[346078855,1734693105987,-500.0,0.00024383,6]
[346078856,1734693105996,-730.97,0.00024383,6]
[346078857,1734693106005,-623.84,0.00024383,6]
[346078858,1734693106014,-10142.93148771,0.00024383,6]
[346078859,1734693286316,95917.53,0.00025,120]
[346078862,1734693345401,10000.0,0.0001725,2]
[346078863,1734693358047,10000.0,0.0001725,2]
[346078864,1734693386751,5734.3765713,0.0001725,2]
[346078865,1734693415587,5784.32976547,0.000172,2]
[346078866,1734693415621,4215.67023453,0.000172,2]
[346078868,1734693435735,10000.0,0.000172,2]
[346078873,1734693800235,8394.96450139,0.00025,120]
[346078874,1734693809119,8394.96450139,0.00025,120]
[346078875,1734693883580,455.5378,0.00025,120]
[346078876,1734693884001,436.76878,0.00025,120]
[346078877,1734693884516,419.0,0.00025,120]
[346078883,1734694036878,189.950115,0.00013973,2]
[346078894,1734694149179,-4265.6234287,0.0001725,2]
[346078895,1734694149201,-300.0,0.00019999,2]
[346078896,1734694149223,-300.0,0.00019999,2]
[346078897,1734694149246,-6311.6125896,0.0002,2]
[346078898,1734694149272,-189.950115,0.00020447,2]
[346078899,1734694149299,-5677.07223518,0.0002082,2]
[346078986,1734694232597,-157.05721082,0.0002082,2]
[346078988,1734694232607,-300.0,0.00020999,2]
[346078990,1734694232616,-300.0,0.00020999,2]
[346078992,1734694232626,-416.87278918,0.00021,2]
[346078995,1734694232638,-467.505,0.00021,2]
[346078996,1734694232672,-319.09,0.00021,2]
[346079126,1734694238428,-14528.75461983,0.00021,2]
[346079127,1734694238437,-2976.58748693,0.00021,2]
[346079128,1734694238446,-404.3724412,0.000215,2]
[346079129,1734694238456,-2634.47002655,0.00021717,2]
[346079130,1734694238465,-666.0,0.00021817,2]
[346079131,1734694238474,-563.93281644,0.00021817,2]
[346079132,1734694238484,-151.0,0.000219,4]
[346079133,1734694238495,-176.218,0.00021915,2]
[346079134,1734694238504,-502.32391033,0.00021917,6]
[346079135,1734694238514,-629.47703735,0.00021917,6]
[346079136,1734694238523,-500.0,0.00021917,6]
[346079137,1734694238533,-500.0,0.00021917,6]
[346079138,1734694238542,-509.4009045,0.00021917,6]
[346079139,1734694238552,-561.26,0.00021917,6]
[346079140,1734694238561,-404.2586746,0.00021917,6]
[346079141,1734694238570,-500.0,0.00021917,6]
[346079142,1734694238579,-500.0,0.00021917,6]
[346079143,1734694238588,-642.81490919,0.00021917,6]
[346079144,1734694238598,-500.0,0.00021917,6]
[346079146,1734694238607,-500.0,0.00021917,6]
[346079148,1734694238616,-500.0,0.00021917,6]
[346079149,1734694238626,-500.0,0.00021917,6]
[346079150,1734694238635,-500.0,0.00021917,6]
[346079151,1734694238646,-500.0,0.00021917,6]
[346079152,1734694238656,-500.0,0.00021917,6]
[346079153,1734694238665,-500.0,0.00021917,6]
[346079155,1734694238674,-500.0,0.00021917,6]
[346079156,1734694238684,-955.43,0.00021917,6]
[346079157,1734694238693,-500.0,0.00021917,6]
[346079158,1734694238702,-500.0,0.00021917,6]
[346079160,1734694238711,-500.0,0.00021917,6]
[346079162,1734694238720,-200.0,0.00021917,6]
[346079164,1734694238729,-500.0,0.00021917,6]
[346079166,1734694238738,-500.0,0.00021917,6]
[346079168,1734694238747,-500.0,0.00021917,6]
[346079170,1734694238756,-500.0,0.00021917,6]
[346079172,1734694238766,-500.0,0.00021917,6]
[346079173,1734694238775,-500.0,0.00021917,6]
[346079174,1734694238785,-500.0,0.00021917,6]
[346079175,1734694238794,-1314.43,0.00021917,6]
[346079176,1734694238804,-500.0,0.00021917,6]
[346079177,1734694238814,-500.0,0.00021917,6]
[346079178,1734694238823,-582.5,0.00021917,6]
[346079179,1734694238833,-867.18,0.00021917,6]
[346079180,1734694238843,-500.0,0.00021917,6]
[346079181,1734694238852,-500.0,0.00021917,6]
[346079182,1734694238861,-500.0,0.00021917,6]
[346079183,1734694238870,-500.0,0.00021917,6]
[346079184,1734694238880,-500.0,0.00021917,6]
[346079185,1734694238891,-500.0,0.00021917,6]
[346079186,1734694238903,-500.0,0.00021917,6]
[346079187,1734694238912,-500.0,0.00021917,6]
[346079188,1734694238921,-500.0,0.00021917,6]
[346079189,1734694238930,-51.80280847,0.00021917,6]
[346079190,1734694238944,-448.19719153,0.00021917,6]
[346079191,1734694238954,-500.0,0.00021917,6]
[346079192,1734694238963,-500.0,0.00021917,6]
[346079193,1734694238973,-500.0,0.00021917,6]
[346079194,1734694238982,-500.0,0.00021917,6]
[346079195,1734694238991,-576.5,0.00021917,6]
[346079196,1734694239000,-500.0,0.00021917,6]
[346079197,1734694239009,-500.0,0.00021917,6]
[346079198,1734694239018,-1212.24,0.00021917,6]
[346079199,1734694239028,-709.1,0.00021917,6]
[346079200,1734694239038,-500.0,0.00021917,6]
[346079201,1734694239047,-500.0,0.00021917,6]
[346079202,1734694239057,-507.75,0.00021917,6]
[346079203,1734694239066,-500.0,0.00021917,6]
[346079204,1734694239075,-500.0,0.00021917,6]
[346079205,1734694239084,-500.0,0.00021917,6]
[346079206,1734694239094,-500.0,0.00021917,6]
[346079207,1734694239103,-500.0,0.00021917,6]
[346079208,1734694239112,-500.0,0.00021917,6]
[346079209,1734694239122,-500.0,0.00021917,6]
[346079210,1734694239131,-500.0,0.00021917,6]
[346079211,1734694239141,-500.0,0.00021917,6]
[346079212,1734694239152,-500.0,0.00021917,6]
[346079213,1734694239161,-154.94465961,0.00021917,6]
[346079214,1734694239170,-500.0,0.00021917,6]
[346079215,1734694239179,-500.0,0.00021917,6]
[346079216,1734694239188,-500.0,0.00021917,6]
[346079217,1734694239198,-871.2,0.00021917,6]
[346079218,1734694239207,-500.0,0.00021917,6]
[346079219,1734694239216,-584.05636258,0.00021917,6]
[346079220,1734694239226,-706.49,0.00021917,6]
[346079221,1734694239235,-500.0,0.00021917,6]
[346079222,1734694239244,-500.0,0.00021917,6]
[346079223,1734694239254,-500.0,0.00021917,6]
[346079224,1734694239264,-500.0,0.00021917,6]
[346079225,1734694239273,-719.46,0.00021917,6]
[346079226,1734694239282,-1463.71,0.00021917,6]
[346079227,1734694239291,-500.0,0.00021917,6]
[346079228,1734694239301,-1230.09,0.00021917,6]
[346079229,1734694239310,-1189.93,0.00021917,6]
[346079230,1734694239319,-579.49,0.00021917,6]
[346079231,1734694239328,-754.73,0.00021917,6]
[346079232,1734694239337,-500.0,0.00021917,6]
[346079233,1734694239346,-786.11,0.00021917,6]
[346079234,1734694239355,-500.0,0.00021917,6]
[346079235,1734694239364,-500.0,0.00021917,6]
[346079236,1734694239374,-500.0,0.00021917,6]
[346079237,1734694239383,-849.68,0.00021917,6]
[346079238,1734694239391,-500.0,0.00021917,6]
[346079239,1734694239405,-513.51,0.00021917,6]
[346079240,1734694239415,-500.0,0.00021917,6]
[346079241,1734694239424,-500.0,0.00021917,6]
[346079242,1734694239434,-1646.32,0.00021917,6]
[346079243,1734694239443,-705.68,0.00021917,6]
[346079244,1734694239452,-500.0,0.00021917,6]
[346079245,1734694239461,-500.0,0.00021917,6]
[346079246,1734694239470,-500.0,0.00021917,6]
[346079247,1734694239480,-500.0,0.00021917,6]
[346079248,1734694239489,-422.28448296,0.00021917,6]
[346079249,1734694239499,-500.0,0.00021917,6]
[346079250,1734694239508,-500.0,0.00021917,6]
[346079251,1734694239518,-500.0,0.00021917,6]
[346079253,1734694239528,-500.0,0.00021917,6]
[346079255,1734694239538,-500.0,0.00021917,6]
[346079257,1734694239547,-500.0,0.00021917,6]
[346079259,1734694239556,-207.74282473,0.00021917,6]
[346079261,1734694239565,-500.0,0.00021917,6]
[346079263,1734694239574,-500.0,0.00021917,6]
[346079265,1734694239583,-1545.88,0.00021917,6]
[346079267,1734694239592,-233.85,0.00021917,6]
[346079269,1734694239601,-521.761257,0.00021917,6]
[346079271,1734694239611,-857.37,0.00021917,6]
[346079273,1734694239623,-542.12,0.00021917,6]
[346079276,1734694239633,-500.0,0.00021917,6]
[346079278,1734694239643,-500.0,0.00021917,6]
[346079280,1734694239654,-500.0,0.00021917,6]
[346079284,1734694239664,-500.0,0.00021917,6]
[346079287,1734694239673,-500.0,0.00021917,6]
[346079289,1734694239682,-500.0,0.00021917,6]
[346079291,1734694239691,-500.0,0.00021917,6]
[346079293,1734694239700,-500.0,0.00021917,6]
[346079295,1734694239710,-500.0,0.00021917,6]
[346079296,1734694239719,-500.0,0.00021917,6]
[346079297,1734694239729,-1524.16,0.00021917,6]
[346079298,1734694239738,-500.0,0.00021917,6]
[346079299,1734694239748,-1969.15,0.00021917,6]
[346079301,1734694239757,-500.0,0.00021917,6]
[346079304,1734694239766,-500.0,0.00021917,6]
[346079307,1734694239776,-666.77,0.00021917,6]
[346079309,1734694239785,-1678.97,0.00021917,6]
[346079311,1734694239795,-1221.42,0.00021917,6]
[346079314,1734694239808,-500.0,0.00021917,6]
[346079317,1734694239817,-919.53,0.00021917,6]
[346079320,1734694239826,-500.0,0.00021917,6]
[346079323,1734694239835,-500.0,0.00021917,6]
[346079326,1734694239845,-532.91367134,0.00021917,6]
[346079330,1734694239857,-500.0,0.00021917,6]
[346079333,1734694239869,-1954.57,0.00021917,6]
[346079337,1734694239882,-530.11,0.00021917,6]
[346079341,1734694239897,-1371.09,0.00021917,6]
[346079344,1734694239909,-570.76,0.00021917,6]
[346079347,1734694239922,-500.0,0.00021917,6]
[346079351,1734694239934,-500.0,0.00021917,6]
[346079354,1734694239944,-500.0,0.00021917,6]
[346079357,1734694239955,-500.0,0.00021917,6]
[346079360,1734694239966,-647.7,0.00021917,6]
[346079364,1734694239978,-659.11,0.00021917,6]
[346079367,1734694239989,-500.0,0.00021917,6]
[346079370,1734694240000,-1365.85,0.00021917,6]
[346079372,1734694240011,-500.0,0.00021917,6]
[346079373,1734694240023,-997.07,0.00021917,6]
[346079375,1734694240035,-1861.38,0.00021917,6]
[346079376,1734694240047,-500.0,0.00021917,6]
[346079377,1734694240059,-500.0,0.00021917,6]
[346079378,1734694240070,-500.0,0.00021917,6]
[346079379,1734694240084,-544.52,0.00021917,6]
[346079380,1734694240095,-500.0,0.00021917,6]
[346079381,1734694240107,-541.67,0.00021917,6]
[346079382,1734694240120,-667.64,0.00021917,6]
[346079384,1734694240130,-532.84,0.00021917,6]
[346079386,1734694240142,-500.0,0.00021917,6]
[346079387,1734694240156,-500.0,0.00021917,6]
[346079389,1734694240167,-1142.47,0.00021917,6]
[346079391,1734694240178,-500.0,0.00021917,6]
[346079393,1734694240188,-551.66,0.00021917,6]
[346079394,1734694240199,-500.0,0.00021917,6]
[346079396,1734694240210,-500.0,0.00021917,6]
[346079398,1734694240222,-1761.45,0.00021917,6]
[346079399,1734694240233,-550.90542906,0.00021917,6]
[346079400,1734694240244,-500.0,0.00021917,6]
[346079401,1734694240256,-500.0,0.00021917,6]
[346079402,1734694240266,-500.0,0.00021917,6]
[346079403,1734694240277,-507.56,0.00021917,6]
[346079404,1734694240287,-607.22,0.00021917,7]
[346079405,1734694240297,-500.0,0.00021917,6]
[346079407,1734694240309,-675.29,0.00021917,6]
[346079408,1734694240320,-515.72,0.00021917,6]
[346079409,1734694240330,-571.63,0.00021917,6]
[346079410,1734694240349,-500.0,0.00021917,6]
[346079411,1734694240362,-500.0,0.00021917,6]
[346079412,1734694240373,-558.46,0.00021917,6]
[346079413,1734694240384,-761.12,0.00021917,6]
[346079414,1734694240398,-2681.03,0.00021917,6]
[346079415,1734694240408,-500.0,0.00021917,6]
[346079416,1734694240419,-500.0,0.00021917,6]
[346079417,1734694240431,-1074.72,0.00021917,6]
[346079418,1734694240443,-500.0,0.00021917,6]
[346079419,1734694240455,-500.0,0.00021917,6]
[346079420,1734694240466,-942.86,0.00021917,6]
[346079421,1734694240478,-990.71,0.00021917,6]
[346079422,1734694240490,-1105.53,0.00021917,6]
[346079423,1734694240500,-1154.59,0.00021917,6]
[346079424,1734694240510,-500.0,0.00021917,6]
[346079425,1734694240520,-593.74,0.00021917,6]
[346079426,1734694240529,-500.0,0.00021917,6]
[346079427,1734694240539,-879.16,0.00021917,6]
[346079428,1734694240549,-9111.85,0.00021917,6]
[346079429,1734694240560,-500.0,0.00021917,6]
[346079430,1734694240572,-1799.03,0.00021917,6]
[346079431,1734694240584,-500.0,0.00021917,6]
[346079432,1734694240595,-500.0,0.00021917,6]
[346079433,1734694240606,-448.63499784,0.00021917,6]
[346079434,1734694240616,-639.80496123,0.00021917,6]
[346079435,1734694240626,-4685.48,0.00021917,6]
[346079436,1734694240635,-500.0,0.00021917,6]
[346079437,1734694240648,-750.17,0.00021917,6]
[346079438,1734694240658,-908.05,0.00021917,2]
[346079439,1734694240668,-2938.15,0.00021917,6]
[346079440,1734694240680,-500.0,0.00021917,6]
[346079441,1734694240692,-500.0,0.00021917,6]
[346079442,1734694240703,-1116.74,0.00021917,6]
[346079443,1734694240714,-500.0,0.00021917,6]
[346079444,1734694240725,-500.0,0.00021917,6]
[346079445,1734694240737,-2325.47,0.00021917,6]
[346079446,1734694240747,-558.81,0.00021917,6]
[346079447,1734694240759,-500.0,0.00021917,6]
[346079448,1734694240770,-1646.13,0.00021917,6]
[346079449,1734694240781,-11962.96,0.00021917,6]
[346079450,1734694240791,-500.0,0.00021917,6]
[346079451,1734694240802,-500.0,0.00021917,6]
[346079452,1734694240815,-500.0,0.00021917,6]
[346079453,1734694240825,-47981.61,0.00021917,6]
[346079454,1734694240836,-500.0,0.00021917,6]
[346079455,1734694240846,-500.0,0.00021917,6]
[346079456,1734694240858,-500.0,0.00021917,6]
[346079457,1734694240869,-500.0,0.00021917,6]
[346079458,1734694240879,-856.87,0.00021917,6]
[346079459,1734694240892,-500.0,0.00021917,6]
[346079460,1734694240907,-500.0,0.00021917,6]
[346079461,1734694240918,-500.0,0.00021917,6]
[346079462,1734694240928,-500.0,0.00021917,6]
[346079463,1734694240939,-13094.31,0.00021917,6]
[346079464,1734694240950,-1008.27,0.00021917,6]
[346079465,1734694240961,-500.0,0.00021917,6]
[346079466,1734694240971,-500.0,0.00021917,6]
[346079467,1734694240982,-500.0,0.00021917,6]
[346079468,1734694240993,-586.91,0.00021917,6]
[346079469,1734694241004,-500.0,0.00021917,6]
[346079470,1734694241015,-599.08,0.00021917,6]
[346079471,1734694241027,-315.40912842,0.00021917,6]
[346079472,1734694241038,-3250.6,0.00021917,6]
[346079473,1734694241048,-500.0,0.00021917,6]
[346079474,1734694241059,-506.64746561,0.00021917,6]
[346079475,1734694241070,-1929.64,0.00021917,6]
[346079476,1734694241081,-500.0,0.00021917,6]
[346079477,1734694241092,-500.0,0.00021917,6]
[346079478,1734694241103,-6353.3,0.00021917,6]
[346079479,1734694241114,-3613.08,0.00021917,6]
[346079480,1734694241125,-699.51,0.00021917,6]
[346079481,1734694241136,-11618.82,0.00021917,6]
[346079482,1734694241151,-500.0,0.00021917,6]
[346079483,1734694241162,-522.89,0.00021917,6]
[346079484,1734694241173,-500.0,0.00021917,6]
[346079485,1734694241184,-890.01,0.00021917,6]
[346079486,1734694241195,-3149.43,0.00021917,6]
[346079487,1734694241206,-500.0,0.00021917,6]
[346079488,1734694241217,-500.0,0.00021917,6]
[346079489,1734694241227,-500.0,0.00021917,6]
[346079490,1734694241238,-461.64223301,0.00021917,6]
[346079491,1734694241248,-500.0,0.00021917,6]
[346079492,1734694241258,-1610.1,0.00021917,6]
[346079493,1734694241269,-2966.71,0.00021917,6]
[346079494,1734694241280,-622.97,0.00021917,6]
[346079495,1734694241291,-500.0,0.00021917,6]
[346079496,1734694241301,-19666.42,0.00021917,6]
[346079497,1734694241311,-559.45,0.00021917,6]
[346079498,1734694241321,-500.0,0.00021917,6]
[346079499,1734694241334,-1311.68,0.00021917,6]
[346079500,1734694241345,-500.0,0.00021917,6]
[346079501,1734694241355,-500.0,0.00021917,6]
[346079502,1734694241366,-566.79,0.00021917,6]
[346079503,1734694241376,-504.89763992,0.00021917,6]
[346079504,1734694241402,-240.55236008,0.00021917,6]
[346079505,1734694241412,-271.94763992,0.00021917,6]
[346079506,1734694241704,-432.82236008,0.00021917,6]
[346079507,1734694241715,-596.95,0.00021917,6]
[346079508,1734694241725,-500.0,0.00021917,6]
[346079509,1734694241736,-500.0,0.00021917,6]
[346079510,1734694241746,-158.20976362,0.00021917,6]
[346079511,1734694241756,-360.48060759,0.00021917,6]
[346079512,1734694241768,-139.51939241,0.00021917,6]
[346079513,1734694241778,-500.0,0.00021917,6]
[346079514,1734694241789,-3063.18,0.00021917,6]
[346079515,1734694241803,-500.0,0.00021917,6]
[346079516,1734694241813,-490.09842769,0.00021917,6]
[346079517,1734694241823,-690.48,0.00021917,6]
[346079518,1734694241833,-500.0,0.00021917,6]
[346079519,1734694241843,-500.0,0.00021917,6]
[346079520,1734694241853,-529.38134212,0.00021917,6]
[346079521,1734694241864,-500.0,0.00021917,6]
[346079522,1734694241874,-618.24,0.00021917,6]
[346079523,1734694241885,-372.57726477,0.00021917,6]
[346079524,1734694241895,-265.03465535,0.00021917,6]
[346079525,1734694241909,-234.96534465,0.00021917,6]
[346079526,1734694241920,-596.24,0.00021917,6]
[346079527,1734694241930,-1042.28,0.00021917,6]
[346079528,1734694241940,-669.3,0.00021917,6]
[346079529,1734694241950,-6968.41,0.00021917,6]
[346079530,1734694241960,-1173.52,0.00021917,6]
[346079531,1734694241970,-2112.07724835,0.00021917,2]
[346079532,1734694241982,-680.79275165,0.00021917,2]
[346079533,1734694241992,-1358.68,0.00021917,6]
[346079534,1734694242003,-500.0,0.00021917,6]
[346079535,1734694242013,-5013.94,0.00021917,2]
[346079536,1734694242023,-4843.52,0.00021917,6]
[346079537,1734694242034,-505.69313627,0.00021917,6]
[346079538,1734694242044,-500.0,0.00021917,6]
[346079539,1734694242055,-1197.34,0.00021917,6]
[346079540,1734694242065,-2776.19,0.00021917,6]
[346079541,1734694242075,-1463.44411208,0.00021917,6]
[346079542,1734694242093,-2495.00588792,0.00021917,6]
[346079543,1734694242104,-500.0,0.00021917,6]
[346079544,1734694242114,-3361.23,0.00021917,6]
[346079545,1734694242125,-2543.32,0.00021917,6]
[346079546,1734694242136,-448.44411208,0.00021917,6]
[346079547,1734694242150,-51.55588792,0.00021917,6]
[346079548,1734694242161,-607.3710445,0.00021917,6]
[346079612,1734694243535,-5664.6189555,0.00021917,6]
[346079613,1734694243546,-3140.07,0.00021917,6]
[346079614,1734694243557,-573.79073263,0.00021917,6]
[346079615,1734694243568,-500.0,0.00021917,6]
[346079616,1734694243579,-1253.7,0.00021917,6]
[346079617,1734694243590,-500.0,0.00021917,6]
[346079618,1734694243602,-701.21,0.00021917,6]
[346079619,1734694243613,-674.87,0.00021917,6]
[346079620,1734694243624,-1029.79,0.00021917,6]
[346079621,1734694243635,-500.03,0.00021917,6]
[346079622,1734694243646,-500.0,0.00021917,6]
[346079623,1734694243662,-500.0,0.00021917,6]
[346079625,1734694243672,-1676.26,0.00021917,6]
[346079626,1734694243684,-517.63,0.00021917,6]
[346079627,1734694243695,-2596.31,0.00021917,6]
[346079628,1734694244029,-500.0,0.00021917,6]
[346079629,1734694244050,-500.0,0.00021917,6]
[346079630,1734694244068,-890.04,0.00021917,6]
[346079631,1734694244077,-1816.44,0.00021917,6]
[346079632,1734694244087,-500.0,0.00021917,6]
[346079633,1734694244095,-567.12,0.00021917,6]
[346079634,1734694244104,-2920.79,0.00021917,6]
[346079635,1734694244114,-500.0,0.00021917,6]
[346079636,1734694244123,-500.0,0.00021917,6]
[346079637,1734694244132,-1271.47,0.00021917,6]
[346079638,1734694244141,-873.66,0.00021917,6]
[346079639,1734694244154,-799.21,0.00021917,6]